bitfinex/quotes_ETHUSD_20250415
["timestamp","ask_amount","ask_price","bid_price","bid_amount"]
[1744750180969,6.1,1602.5,1602.1,0.8186]
[1744750181170,6.24079882,1602.4,1602.1,0.8186]
[1744750181374,6.24079882,1602.4,1602.2,0.8186]
[1744750181932,6.24102852,1602.3,1602.2,0.8186]
[1744750187487,6.24079882,1602.4,1602.2,0.8186]
[1744750187488,12.48164465,1602.4,1602.2,0.8186]
[1744750187694,12.48164465,1602.4,1602.3,0.7595]
[1744750190064,12.48164465,1602.4,1601.3,0.7595]
[1744750190065,7.06602852,1602.3,1601.3,0.7595]
[1744750190264,6.24357177,1601.7,1601.5,0.7595]
[1744750190504,6.24375624,1601.6,1601.5,0.7595]
[1744750202032,6.24375624,1601.6,1601.2,1.3302]
[1744750202033,12.48949154,1601.4,1601.2,1.3302]
[1744750202199,12.48949154,1601.4,1601.2,2.54066894]
[1744750203528,6.24473322,1601.4,1601.2,2.54066894]
[1744750203726,6.24469004,1601.4,1601.2,2.54066894]
[1744750204694,12.48941487,1601.4,1601.2,2.54066894]
[1744750204890,6.24468509,1601.4,1601.2,2.54066894]
[1744750205090,12.48941043,1601.4,1601.2,2.54066894]
[1744750206027,6.24468509,1601.4,1601.2,2.54066894]
[1744750206261,6.24390632,1601.6,1601.3,0.7564]
[1744750206410,6.24417486,1601.5,1601.3,0.7564]
[1744750206591,6.24417486,1601.5,1601.3,2.26335685]
[1744750207522,6.24417486,1601.5,1601.3,0.7564]
[1744750207829,12.48868934,1601.5,1601.3,0.7564]
[1744750208127,6.24392731,1601.6,1601.4,0.8195]
[1744750208309,12.48787886,1601.6,1601.4,0.8195]
[1744750208492,12.48787886,1601.6,1601.4,6.2905]
[1744750208691,6.24414611,1601.5,1601.4,7.90798443]
[1744750209401,12.48800317,1601.6,1601.4,7.90798443]
[1744750210127,6.24392731,1601.6,1601.4,7.97042149]
[1744750210449,6.24301013,1601.8,1601.6,0.7891]
[1744750210730,6.24410458,1601.6,1601.4,6.2836]
[1744750210924,12.4878722,1601.6,1601.4,6.2836]
[1744750212299,6.24414611,1601.5,1601.4,6.2836]
[1744750219644,6.24414611,1601.5,1601.4,5.471]
[1744750220003,6.24492599,1601.3,1601.2,0.7724]
[1744750220205,6.24492599,1601.3,1601.1,0.414497]
[1744750220206,6.24531601,1601.2,1601.1,0.414497]
[1744750224343,6.24492599,1601.3,1601.1,0.414497]
[1744750224931,12.49000693,1601.3,1601.1,0.414497]
[1744750225242,6.24492599,1601.3,1601.1,0.414497]
[1744750225548,6.24531601,1601.2,1601.1,0.414497]
[1744750228348,0.8266,1601.4,1601.1,0.414497]
[1744750228521,6.71008833,1601.9,1601.2,0.7708]
[1744750228522,6.24375624,1601.6,1601.2,0.7708]
[1744750228718,6.24466474,1601.4,1601.2,0.7708]
[1744750228915,6.2450339,1601.3,1601.1,0.414497]
[1744750229115,6.24465377,1601.4,1601.1,1.14370703]
[1744750229447,6.24503674,1601.3,1601.1,1.14370703]
[1744750231117,12.49012212,1601.3,1601.1,1.0812567]
[1744750231317,12.49012212,1601.3,1601.1,0.414497]
[1744750231519,6.24531601,1601.2,1601.1,0.414497]
[1744750232045,12.49029963,1601.3,1601.1,0.414497]
[1744750232227,6.24503674,1601.3,1601.1,0.414497]
[1744750232636,6.24503674,1601.3,1601.1,0.47694729]
[1744750232845,12.49016201,1601.3,1601.1,0.414497]
[1744750233934,6.24503674,1601.3,1601.1,1.76828466]
[1744750234330,6.24393855,1601.6,1601.2,1.3513]
[1744750234534,6.24393855,1601.6,1601.3,6.24480123]
[1744750234828,6.24416483,1601.5,1601.2,13.84166348]
[1744750235031,12.48847182,1601.5,1601.3,1.38416635]
[1744750235232,12.48847182,1601.5,1601.2,7.59648174]
[1744750236048,6.24455688,1601.4,1601.2,1.3513]
[1744750236534,6.24455688,1601.4,1601.2,0.8013]
[1744750238551,6.2442418,1601.5,1601.2,0.86374505]
[1744750238733,12.48860734,1601.5,1601.2,7.1089641]
[1744750238932,12.48860734,1601.5,1601.2,8.9789566]
[1744750239650,12.48954271,1601.4,1601.2,0.8013]
[1744750239856,6.24498876,1601.3,1601.1,1.238797]
[1744750240065,6.24531601,1601.2,1601.1,1.238797]
[1744750242229,6.24531601,1601.2,1601.1,0.414497]
[1744750243928,7.00381601,1601.2,1601.1,0.414497]
[1744750247264,6.24531601,1601.2,1601.1,0.414497]
[1744750247588,7.00751601,1601.2,1601.1,0.414497]
[1744750249564,16.05204356,1601.2,1601.1,1e-08]
[1744750252052,19.05204356,1601.2,1601.1,1e-08]
[1744750254539,25.62204356,1601.2,1601.1,1e-08]
[1744750255453,7.05467656,1600.8,1600.7,1e-08]
[1744750255775,27.39464137,1600.8,1600.7,1e-08]
[1744750256078,19.90542991,1600.8,1600.7,1e-08]
[1744750256249,19.90542991,1600.8,1600.1,0.02]
[1744750256250,7.00641884,1600.2,1600.1,0.02]
[1744750256449,6.24921884,1600.2,1600.1,0.02]
[1744750257266,6.25135649,1599.7,1599.5,0.394497]
[1744750258272,12.50117569,1599.9,1599.6,0.8062]
[1744750258561,6.25007709,1600.0,1599.6,7.05760614]
[1744750258751,6.25007709,1600.0,1599.7,1.52136061]
[1744750258952,12.5004519,1600.0,1599.7,1.52136061]
[1744750259571,6.25007709,1600.0,1599.7,7.77242449]
[1744750260481,6.25007709,1600.0,1599.7,8.09707754]
[1744750260681,6.25007709,1600.0,1599.7,8.09703205]
[1744750261682,6.25007709,1600.0,1599.7,1.84601366]
[1744750262563,12.50121126,1599.9,1599.7,1.84601366]
[1744750262759,6.25056033,1599.9,1599.7,1.14025305]
[1744750262962,6.25009086,1600.0,1599.7,0.8156]
[1744750263163,6.25044129,1599.9,1599.7,0.8156]
[1744750263559,4.91468829,1600.3,1599.7,0.8156]
[1744750263560,7.04733975,1600.3,1599.7,0.8156]
[1744750263785,12.49901675,1600.2,1599.8,6.25074119]
[1744750264082,7.07489462,1600.5,1600.2,0.7719]
[1744750264268,12.49726008,1600.4,1600.2,0.7719]
[1744750264475,6.24882834,1600.3,1600.2,0.7719]
[1744750264870,6.24859,1600.4,1600.2,0.7719]
[1744750265253,12.49736153,1600.4,1600.2,0.7719]
[1744750266054,6.24859,1600.4,1600.2,0.7719]
[1744750266267,6.24784603,1600.6,1600.2,7.72300986]
[1744750266482,12.49589255,1600.6,1600.2,13.97211039]
[1744750266687,6.24808532,1600.5,1600.2,7.72300986]
[1744750266887,6.24808532,1600.5,1600.2,1.47404981]
[1744750267084,6.24864736,1600.4,1600.2,1.47404981]
[1744750267258,6.24864736,1600.4,1600.2,0.7719]
[1744750267459,12.4979506,1600.3,1600.0,0.8081]
[1744750268108,6.24882834,1600.3,1600.0,7.05804124]
[1744750268285,6.24852869,1600.4,1600.1,6.9552886]
[1744750268457,6.24852869,1600.4,1600.0,7.0579943]
[1744750268658,6.24852869,1600.4,1600.1,6.24955455]
[1744750269100,12.49644309,1600.5,1600.1,12.49902384]
[1744750269392,6.24807702,1600.5,1600.3,0.8081]
[1744750269601,6.24741371,1600.7,1600.3,0.8081]
[1744750269963,6.24688882,1600.8,1600.4,6.24825996]
[1744750270161,6.24688882,1600.8,1600.6,0.8081]
[1744750270407,6.24583893,1601.1,1600.7,6.24711837]
[1744750270607,6.24651786,1600.9,1600.7,5.451]
[1744750270905,6.24623925,1601.0,1600.7,5.451]
[1744750271075,12.49257623,1601.0,1600.7,5.451]
[1744750271278,6.24653233,1600.9,1600.7,5.451]
[1744750271868,6.24687656,1600.8,1600.7,5.451]
[1744750272212,6.24653233,1600.9,1600.7,5.451]
[1744750272509,6.24624074,1601.0,1600.7,6.07691]
[1744750272674,6.24624074,1601.0,1600.7,12.32399836]
[1744750272874,12.49251334,1601.0,1600.7,12.32399836]
[1744750273194,6.24624074,1601.0,1600.7,12.32399836]
[1744750273513,6.24579569,1601.1,1600.9,0.8081]
[1744750273815,6.24540397,1601.2,1600.9,0.8081]
[1744750274025,6.24504096,1601.3,1601.0,6.24592753]
[1744750274193,6.24454153,1601.4,1601.1,0.8081]
[1744750274393,6.24454153,1601.4,1601.1,7.05374662]
[1744750274806,6.24454153,1601.4,1601.1,13.61101178]
[1744750275421,6.19454153,1601.4,1601.1,13.61091961]
[1744750276190,6.19454153,1601.4,1601.1,19.8564739]
[1744750277126,6.24398396,1601.6,1601.3,0.7815]
[1744750277329,12.48805666,1601.6,1601.3,0.7815]
[1744750277487,6.24430312,1601.5,1601.3,0.7815]
[1744750277821,12.48861449,1601.5,1601.3,0.7815]
[1744750277997,6.24430312,1601.5,1601.3,0.7815]
[1744750278203,6.24453603,1601.4,1601.3,0.7815]
[1744750278919,12.48862883,1601.5,1601.3,0.7815]
[1744750279125,6.24430312,1601.5,1601.3,0.7815]
[1744750279329,12.48868548,1601.5,1601.3,0.7815]
[1744750279828,6.24453603,1601.4,1601.3,0.7815]
[1744750279992,6.24453603,1601.4,1601.1,20.41546691]
[1744750280929,12.48861855,1601.5,1601.2,8.11121393]
[1744750281125,6.24430312,1601.5,1601.2,14.35641548]
[1744750281441,6.24430312,1601.5,1601.3,0.8136]
[1744750281592,6.24430312,1601.5,1601.1,5.45]
[1744750281593,6.24518692,1601.3,1601.1,5.45]
[1744750283426,7.06351505,1601.5,1601.2,6.24518895]
[1744750283620,6.24473678,1601.4,1601.1,11.69562713]
[1744750283822,12.48948762,1601.4,1601.1,12.94654984]
[1744750284518,6.24473678,1601.4,1601.1,19.19217697]
[1744750284724,12.48941165,1601.4,1601.1,12.94654984]
[1744750285106,6.24467487,1601.4,1601.1,12.94651975]
[1744750286224,6.24467487,1601.4,1601.1,12.94649931]
[1744750286420,0.8305,1601.7,1601.3,0.7624]
[1744750286730,12.48947228,1601.4,1601.2,0.7624]
[1744750286903,6.24472974,1601.4,1601.2,0.7624]
[1744750287103,6.24421925,1601.5,1601.2,7.00768648]
[1744750287506,6.24455141,1601.4,1601.2,0.7624]
[1744750287939,6.24421925,1601.5,1601.2,8.87806852]
[1744750288139,12.48873693,1601.5,1601.2,8.87795801]
[1744750288431,6.24421925,1601.5,1601.2,8.87795801]
[1744750288633,6.24341711,1601.7,1601.5,0.812]
[1744750288843,12.48699543,1601.7,1601.5,0.812]
[1744750289015,6.24341711,1601.7,1601.5,0.812]
[1744750289336,6.24338892,1601.7,1601.5,1.51763718]
[1744750289522,6.24338892,1601.7,1601.5,0.812]
[1744750289710,6.24338892,1601.7,1601.4,7.00571498]
[1744750289912,6.24338892,1601.7,1601.4,13.25013847]
[1744750290236,6.24308628,1601.8,1601.5,6.24411667]
[1744750290443,6.24348391,1601.7,1601.4,7.00571498]
[1744750290611,12.48707958,1601.7,1601.4,2.08635239]
[1744750290806,6.24469535,1601.4,1601.1,12.49281346]
[1744750291007,12.48945293,1601.4,1601.1,12.49281346]
[1744750291518,6.24469535,1601.4,1601.1,18.73838742]
[1744750292041,6.24417898,1601.5,1601.2,6.2452896]
[1744750292230,6.24417898,1601.5,1601.2,8.11909596]
[1744750292536,12.48854351,1601.5,1601.2,8.11909596]
[1744750292905,6.24456576,1601.4,1601.2,1.87380636]
[1744750293309,6.24417898,1601.5,1601.2,8.11900448]
[1744750293510,6.24454887,1601.4,1601.2,1.87380636]
[1744750293709,6.24454887,1601.4,1601.1,12.49288517]
[1744750293923,12.48922737,1601.4,1601.1,12.49288517]
[1744750294842,6.24454887,1601.4,1601.1,12.49288517]
[1744750295138,6.24414611,1601.5,1601.1,6.2472]
[1744750295338,6.24531601,1601.2,1601.1,0.7972]
[1744750295540,12.49101316,1601.2,1601.0,5.447]
[1744750295748,12.49101316,1601.2,1600.9,9.90992755]
[1744750295946,12.49101316,1601.2,1600.9,8.68899702]
[1744750296124,6.24609618,1601.0,1600.9,5.447]
[1744750296325,6.24687656,1600.8,1600.6,5.447]
[1744750297316,12.49392821,1600.8,1600.6,5.447]
[1744750297941,12.49395206,1600.8,1600.6,5.447]
[1744750298136,6.24687656,1600.8,1600.6,5.447]
[1744750298452,0.7974,1600.9,1600.6,17.83948072]
[1744750298453,13.29069539,1600.9,1600.6,17.83948072]
[1744750298930,6.24688353,1600.8,1600.6,11.5919596]
[1744750299136,6.24660712,1600.9,1600.7,0.8193]
[1744750300950,6.24726682,1600.7,1600.6,12.3554596]
[1744750301254,6.24726682,1600.7,1600.6,6.2105]
[1744750302547,6.24788514,1600.6,1600.4,0.7946]
[1744750302757,6.24699551,1600.8,1600.5,6.24798474]
[1744750302965,12.49402306,1600.8,1600.5,6.24798474]
[1744750303164,12.49402306,1600.8,1600.5,0.55]
[1744750303464,6.24732718,1600.7,1600.5,1.9341346]
[1744750304269,6.24782697,1600.6,1600.4,0.7946]
[1744750304427,6.24780975,1600.6,1600.4,0.7946]
[1744750304622,6.24804748,1600.5,1600.4,0.7946]
[1744750305022,12.49579965,1600.6,1600.4,0.7946]
[1744750305755,12.49491798,1600.7,1600.4,7.04300295]
[1744750305947,6.24770889,1600.6,1600.4,3.03878119]
[1744750306452,6.24770889,1600.6,1600.4,3.10125932]
[1744750307555,6.24770889,1600.6,1600.5,3.63952755]
[1744750307717,12.49507513,1600.7,1600.4,3.10125932]
[1744750307916,6.24656216,1600.9,1600.5,0.55]
[1744750308121,6.24656216,1600.9,1600.6,0.8287]
[1744750308675,12.49332223,1600.9,1600.6,7.07635214]
[1744750309170,12.49332223,1600.9,1600.6,0.8287]
[1744750309466,6.24692413,1600.8,1600.6,0.8287]
[1744750309672,12.49402675,1600.8,1600.6,2.67910973]
[1744750309849,6.24692413,1600.8,1600.6,2.67910973]
[1744750310359,6.24692413,1600.8,1600.6,0.8287]
[1744750310651,6.24726682,1600.7,1600.6,0.8287]
[1744750311960,6.24726682,1600.7,1600.5,0.55]
[1744750312563,12.49491256,1600.7,1600.5,0.55]
[1744750313378,6.24663355,1600.9,1600.7,0.55]
[1744750313555,6.24663355,1600.9,1600.7,5.999]
[1744750314090,6.24747818,1600.7,1600.3,13.29442144]
[1744750314288,6.24779971,1600.6,1600.4,0.55]
[1744750314581,6.24804748,1600.5,1600.3,6.246]
[1744750314730,6.24773369,1600.6,1600.3,6.246]
[1744750314930,12.49557026,1600.6,1600.3,12.55727875]
[1744750315132,6.24773369,1600.6,1600.3,14.73938705]
[1744750315327,12.4956116,1600.6,1600.4,0.55]
[1744750315855,6.24804748,1600.5,1600.4,0.55]
[1744750317069,6.24804748,1600.5,1600.3,5.449]
[1744750317240,6.24843789,1600.4,1600.3,5.449]
[1744750317675,12.49628345,1600.5,1600.3,5.999]
[1744750318548,6.24843789,1600.4,1600.3,5.449]
[1744750320040,6.24774864,1600.6,1600.4,0.7712]
[1744750320242,6.24823459,1600.5,1600.4,0.7712]
[1744750320441,6.24843789,1600.4,1600.3,1.3212]
[1744750321491,6.24823212,1600.5,1600.3,1.3212]
[1744750321785,6.2481891,1600.5,1600.3,1.3212]
[1744750321966,12.49638015,1600.5,1600.3,1.3212]
[1744750322161,12.49638015,1600.5,1600.3,1.38368132]
[1744750322370,6.2481891,1600.5,1600.3,1.38368132]
[1744750322692,12.49555031,1600.6,1600.3,2.51091394]
[1744750322861,12.49497016,1600.7,1600.4,0.55]
[1744750323064,6.24740113,1600.7,1600.4,12.248382]
[1744750323265,12.49480774,1600.7,1600.4,12.248382]
[1744750323776,6.24771488,1600.6,1600.4,6.0]
[1744750323938,6.24771488,1600.6,1600.4,7.41471431]
[1744750324371,12.49567738,1600.6,1600.4,6.0]
[1744750324572,6.24771488,1600.6,1600.4,6.0]
[1744750324758,12.49551538,1600.6,1600.4,6.0]
[1744750324960,6.24771488,1600.6,1600.4,6.0]
[1744750325485,12.49552894,1600.6,1600.4,6.0]
[1744750327286,12.49551383,1600.6,1600.4,6.0]
[1744750327456,12.49551383,1600.6,1600.4,7.41471365]
[1744750327662,6.24771488,1600.6,1600.4,7.41471365]
[1744750328285,6.24771488,1600.6,1600.4,7.47719036]
[1744750329473,6.24771488,1600.6,1600.4,7.41471365]
[1744750330381,12.49344779,1600.9,1600.5,7.05299804]
[1744750330686,6.24694078,1600.8,1600.6,0.7052998]
[1744750331463,6.24694078,1600.8,1600.7,0.58383649]
[1744750332404,7.07082062,1601.0,1600.7,6.83109376]
[1744750332405,7.07089506,1601.0,1600.7,6.83109376]
[1744750332693,6.24573457,1601.1,1600.8,12.23981652]
[1744750332890,6.24612069,1601.0,1600.9,0.58383649]
[1744750333190,6.24573457,1601.1,1600.9,0.58383649]
[1744750333574,6.24573457,1601.1,1601.0,0.58383649]
[1744750335163,7.02163457,1601.1,1601.0,0.58383649]
[1744750335363,7.02163457,1601.1,1600.6,6.24765506]
[1744750335364,7.02374847,1600.6,1600.2,6.24902618]
[1744750335563,6.24809667,1600.5,1600.2,0.8083]
[1744750335964,6.24809667,1600.5,1600.2,6.2503]
[1744750336160,12.49631585,1600.5,1600.2,8.12522317]
[1744750336367,12.49634063,1600.5,1600.2,8.18770767]
[1744750336565,6.24852711,1600.4,1600.2,8.18770767]
[1744750337010,12.49652098,1600.5,1600.2,8.18770767]
[1744750337390,6.2484466,1600.4,1600.2,8.18770767]
[1744750338316,12.49652098,1600.5,1600.2,8.18770767]
[1744750338615,6.24809667,1600.5,1600.2,8.18770767]
[1744750338786,12.49639636,1600.5,1600.2,8.18770767]
[1744750339722,6.24762345,1600.7,1600.3,4.36877077]
[1744750339884,6.24793066,1600.6,1600.3,4.36877077]
[1744750340715,6.24782026,1600.6,1600.3,4.36877077]
[1744750341021,6.24806191,1600.5,1600.3,4.36877077]
[1744750341174,6.24843789,1600.4,1600.1,0.7918]
[1744750341375,6.24921884,1600.2,1600.0,0.7629]
[1744750341599,6.25096765,1599.8,1599.6,0.7629]
[1744750341774,12.5020549,1599.8,1599.6,0.7629]
[1744750341978,6.25156289,1599.6,1599.5,5.836497]
[1744750342430,10.67559044,1599.6,1599.5,0.394497]
[1744750342778,9.89109044,1599.6,1599.1,0.02]
[1744750343106,7.01042656,1599.2,1599.1,0.02]
[1744750345081,7.06839482,1599.4,1599.1,0.02]
[1744750345409,13.32095421,1599.4,1599.1,0.02]
[1744750345981,7.03563104,1599.6,1599.2,0.55]
[1744750346304,6.25235084,1599.4,1599.2,1.1514]
[1744750346507,6.25285797,1599.3,1599.1,5.464]
[1744750346712,6.25312656,1599.2,1599.1,0.02]
[1744750347004,6.25285797,1599.3,1599.1,0.02]
[1744750347005,7.03245797,1599.3,1599.1,0.02]
[1744750347171,6.25312656,1599.2,1599.1,0.02]
[1744750347577,13.28541781,1599.3,1599.1,0.02]
[1744750347778,6.25312656,1599.2,1599.1,0.02]
[1744750348807,7.03245797,1599.3,1599.1,0.02]
[1744750349032,6.25240844,1599.4,1599.1,0.02]
[1744750349437,7.00659935,1599.5,1599.1,0.02]
[1744750349740,12.50499279,1599.4,1599.1,0.02]
[1744750350033,12.50501063,1599.4,1599.1,0.02]
[1744750350263,7.07762656,1599.2,1599.1,0.02]
[1744750350741,7.07762656,1599.2,1599.1,1e-08]
[1744750351627,7.07879983,1598.9,1598.8,1e-08]
[1744750351826,19.84820356,1598.9,1598.8,1e-08]
[1744750352394,16.84820356,1598.9,1598.8,1e-08]
[1744750356708,17.32433147,1598.9,1598.8,1e-08]
[1744750358342,13.00092774,1598.9,1598.8,1e-08]
[1744750359542,17.32433147,1598.9,1598.8,1e-08]
[1744750360819,7.05825625,1598.4,1598.3,1e-08]
[1744750361018,19.19725625,1598.4,1598.3,1e-08]
[1744750361245,19.19725625,1598.4,1597.9,0.394497]
[1744750361246,0.826,1598.1,1597.9,0.394497]
[1744750361434,10.581226,1598.0,1597.9,1e-08]
[1744750361763,7.09085667,1597.2,1597.1,0.025]
[1744750362246,7.09085667,1597.2,1596.3,0.394497]
[1744750362247,0.8299,1597.1,1596.3,0.394497]
[1744750362433,4.32340373,1597.0,1596.3,0.394497]
[1744750362638,6.26397064,1596.5,1596.3,0.394497]
[1744750362816,6.26256699,1596.8,1595.4,9.61706543]
[1744750362817,0.7961,1596.3,1595.4,9.61706543]
[1744750363152,7.0637277,1595.5,1595.4,9.14353581]
[1744750363325,0.7961,1595.5,1595.4,9.14353581]
[1744750363512,7.0637277,1595.5,1595.4,9.14353581]
[1744750364115,0.7961,1595.5,1595.4,9.14353581]
[1744750364529,7.0637277,1595.5,1595.4,9.14353581]
[1744750364733,6.26751953,1595.6,1595.4,9.14353581]
[1744750364961,0.7508,1595.4,1594.0,14.7114883]
[1744750365247,0.7508,1595.4,1592.7,28.51981979]
[1744750365248,0.7508,1595.4,1592.7,19.31389337]
[1744750365249,0.2,1593.7,1592.7,19.31389337]
[1744750365417,0.2,1593.7,1592.2,0.9344697]
[1744750365418,6.28022357,1592.3,1592.2,0.9344697]
[1744750365822,10.782246,1592.3,1592.2,0.9344697]
[1744750366118,0.78268285,1592.8,1591.8,26.22265546]
[1744750366347,3.18876254,1592.5,1591.8,26.22265546]
[1744750366544,6.28018515,1592.4,1591.8,26.17265546]
[1744750366719,0.5541061,1592.3,1591.8,26.17265546]
[1744750366920,0.5541061,1592.3,1591.0,33.35126867]
[1744750366921,6.2845651,1591.2,1591.1,1e-08]
[1744750367121,0.2,1591.7,1591.1,0.23225462]
[1744750367322,0.2,1591.7,1590.8,0.4505696]
[1744750367323,6.28346558,1591.5,1590.8,1e-08]
[1744750367568,3.0,1590.9,1590.8,1e-08]
[1744750367822,4.50202243,1590.9,1590.1,0.02]
[1744750367992,6.2862421,1590.8,1590.1,0.02]
[1744750368291,0.2,1590.5,1589.9,19.00996938]
[1744750368463,1.01622154,1590.9,1588.5,0.97765152]
[1744750368464,4.50202243,1590.6,1588.7,18.34561903]
[1744750368761,6.29599386,1588.4,1588.1,43.53608175]
[1744750368963,9.29762579,1587.9,1586.7,0.13524469]
[1744750369130,0.32545748,1588.0,1586.7,0.13524469]
[1744750369330,0.32545748,1588.0,1587.1,0.05]
[1744750369564,0.47695703,1588.8,1587.3,0.94204545]
[1744750369761,3.10422992,1588.9,1587.3,0.94204545]
[1744750369962,3.2,1589.2,1587.3,1.66627871]
[1744750369963,3.1819798,1588.7,1587.3,1.66627871]
[1744750370277,6.29360527,1589.0,1587.3,1.66627871]
[1744750370559,6.29019596,1589.8,1587.6,0.7808]
[1744750370759,0.2,1590.2,1587.5,1.45243291]
[1744750370965,3.13233716,1590.8,1588.9,0.2]
[1744750370966,6.28618771,1590.8,1588.9,0.2]
[1744750371163,0.02,1591.4,1590.0,6.28900784]
[1744750371164,0.06155341,1590.3,1590.0,6.28900784]
[1744750371462,0.02,1591.4,1590.0,6.28900784]
[1744750371463,0.02,1591.4,1590.9,6.28552309]
[1744750371650,0.02,1591.4,1591.3,6.28417017]
[1744750371850,0.02,1592.4,1591.9,6.28169291]
[1744750372053,0.02,1592.4,1591.9,6.9098622]
[1744750372254,0.02,1592.4,1592.3,6.28022357]
[1744750372439,0.02,1593.4,1593.0,6.27727542]
[1744750372639,0.02,1593.4,1592.2,0.06280244]
[1744750372640,0.02,1593.4,1592.0,3.0]
[1744750372863,0.02,1593.4,1592.3,6.27999811]
[1744750373052,0.02,1593.4,1592.7,12.55678786]
[1744750373255,13.11885164,1592.5,1592.1,0.7969]
[1744750373456,13.11885164,1592.5,1591.6,3.0]
[1744750373656,0.02,1593.4,1592.6,6.27898246]
[1744750373856,0.02,1593.4,1592.8,6.27825213]
[1744750374064,0.02,1593.4,1592.9,0.62782521]
[1744750374244,0.02,1593.4,1593.3,6.27628193]
[1744750374844,0.02,1593.4,1592.7,55.2275948]
[1744750374845,0.02,1593.4,1592.2,55.22956021]
[1744750375079,19.20658385,1593.4,1593.3,0.13112882]
[1744750375294,19.20658385,1593.4,1593.3,6.27628193]
[1744750375481,13.2463249,1594.4,1593.5,6.27549419]
[1744750375779,13.2463249,1594.4,1593.6,0.74537863]
[1744750375986,13.2463249,1594.4,1594.3,6.27234522]
[1744750376146,13.2463249,1594.4,1593.6,6.2751004]
[1744750376346,0.02,1594.4,1594.0,6.27320308]
[1744750376553,17.72384525,1594.1,1593.0,0.7894]
[1744750376752,17.72384525,1594.1,1593.3,55.22396999]
[1744750376974,3.0,1593.9,1593.3,48.948]
[1744750377161,18.49154525,1594.1,1593.3,48.948]
[1744750377371,3.0,1594.0,1593.3,48.948]
[1744750377575,9.27378335,1594.0,1593.3,48.948]
[1744750377753,3.0,1594.0,1593.3,48.948]
[1744750377954,18.49154525,1594.1,1593.4,6.27552574]
[1744750378154,18.49154525,1594.1,1593.3,48.948]
[1744750378586,0.7677,1594.1,1593.3,48.948]
[1744750378883,0.7677,1594.1,1592.5,6.27921836]
[1744750379096,3.0,1593.6,1592.6,6.90660319]
[1744750379256,3.0,1593.6,1592.7,6.27857274]
[1744750379452,6.27481782,1593.7,1592.4,0.7835]
[1744750379686,6.27662928,1593.3,1592.3,55.22802253]
[1744750379884,12.55325856,1593.3,1592.3,48.87481069]
[1744750380089,6.27709789,1593.1,1592.3,42.59478816]
[1744750380262,6.52104849,1593.9,1592.4,6.27951272]
[1744750380464,6.27732512,1593.1,1592.3,42.59478816]
[1744750380785,3.7677,1593.1,1591.9,0.7835]
[1744750380951,6.27905332,1592.6,1591.7,12.80341775]
[1744750381157,6.27905332,1592.6,1591.7,6.28236926]
[1744750381354,9.27826709,1592.8,1591.7,6.28225221]
[1744750381564,6.27785799,1592.9,1591.7,6.28259094]
[1744750381763,3.0,1592.9,1592.1,6.28079751]
[1744750382185,11.8755289,1593.2,1592.1,6.28101249]
[1744750382382,11.8755289,1593.2,1593.1,6.27706986]
[1744750382582,11.8755289,1593.2,1592.9,48.954]
[1744750382988,6.27841607,1592.8,1591.8,6.52104849]
[1744750383184,18.15243977,1593.2,1591.3,6.28382127]
[1744750383185,3.7677,1593.1,1591.6,49.7056]
[1744750383360,6.27899291,1592.7,1591.8,6.2819896]
[1744750383560,0.7677,1593.1,1592.0,12.80245552]
[1744750383776,11.8755289,1593.2,1592.9,6.27766374]
[1744750383973,11.8755289,1593.2,1593.1,6.27706986]
[1744750384192,8.1909577,1593.3,1592.7,48.954]
[1744750384353,8.1909577,1593.3,1593.0,6.27720343]
[1744750384558,8.1909577,1593.3,1592.7,48.954]
[1744750384760,8.1909577,1593.3,1592.0,6.28108903]
[1744750384761,6.27749014,1593.0,1592.1,7.09001249]
[1744750384978,8.1909577,1593.3,1592.1,7.08999648]
[1744750385179,6.27730858,1593.1,1592.1,0.809]
[1744750385365,6.27732765,1593.1,1592.2,6.2804595]
[1744750385576,3.55,1593.1,1592.1,0.809]
[1744750385778,6.27892047,1592.7,1592.0,48.954]
[1744750386094,6.27874798,1592.7,1592.0,48.954]
[1744750386278,6.27922897,1592.6,1592.0,46.28688409]
[1744750386689,6.28038148,1592.3,1591.5,7.10558116]
[1744750386997,12.56090977,1592.3,1591.5,7.10558116]
[1744750387167,6.28070677,1592.2,1591.5,7.10558116]
[1744750387771,6.27985982,1592.4,1591.7,6.28251318]
[1744750387972,6.27985982,1592.4,1591.5,7.03073025]
[1744750388302,6.27988934,1592.4,1591.6,6.28298567]
[1744750388598,6.28025095,1592.3,1591.6,6.28265088]
[1744750388902,6.28284472,1591.7,1591.1,0.02]
[1744750389103,6.28309298,1591.6,1591.1,0.02]
[1744750389312,6.2826329,1591.7,1591.2,0.12878993]
[1744750389495,6.2826329,1591.7,1591.1,6.28490052]
[1744750389670,13.15329412,1591.9,1591.3,0.11759985]
[1744750389875,13.15329412,1591.9,1591.2,0.11805744]
[1744750390077,19.43512296,1591.9,1591.4,0.11937224]
[1744750390297,25.71725465,1591.9,1591.3,0.1197631]
[1744750390484,19.08896528,1591.6,1591.5,0.11878144]
[1744750390684,19.08896528,1591.6,1591.2,6.28438815]
[1744750390883,19.08896528,1591.6,1590.8,3.0]
[1744750391083,19.08896528,1591.6,1591.2,12.56877791]
[1744750391610,19.08896528,1591.6,1591.4,6.28376585]
[1744750391774,19.08896528,1591.6,1591.3,6.2839886]
[1744750391976,12.52189946,1591.6,1591.3,6.28317065]
[1744750392175,12.52189946,1591.6,1591.2,12.56892927]
[1744750392402,12.52189946,1591.6,1591.5,6.28338045]
[1744750392604,6.56706582,1592.0,1591.9,6.28180162]
[1744750392780,6.27735729,1593.1,1592.1,6.28084375]
[1744750392982,0.02,1593.4,1592.4,6.27965975]
[1744750393325,0.02,1593.4,1592.8,6.27825213]
[1744750393532,0.02,1593.4,1592.9,0.06277502]
[1744750393677,0.02,1593.4,1592.7,0.8175]
[1744750393877,0.02,1593.4,1593.0,6.27728593]
[1744750394073,0.02,1593.4,1592.7,0.8175]
[1744750394338,6.27658941,1593.3,1592.7,7.09601476]
[1744750394476,6.27708499,1593.1,1592.7,0.8175]
[1744750394679,6.27708499,1593.1,1592.4,3.0]
[1744750394680,3.88181696,1592.5,1592.4,3.0]
[1744750395029,3.88181696,1592.5,1592.4,6.27982918]
[1744750395598,3.88181696,1592.5,1592.4,8.30782047]
[1744750395930,3.88181696,1592.5,1592.4,8.24503053]
[1744750396235,3.88181696,1592.5,1592.4,8.30781969]
[1744750396600,3.88181696,1593.1,1592.8,6.27793344]